[Event "MPL-4 Indian Chess Tour 2022"]
[Site "Chess24"]
[Date "2022.09.27"]
[Round "1.1"]
[White "Karthikeyan, Murali"]
[Black "Raja Harshit"]
[Result "1-0"]
[ECO "B90"]
[WhiteElo "2623"]
[BlackElo "2459"]
[Annotator "TA"]
[PlyCount "41"]
[EventDate "2022.09.29"]
[EventType "tourn (rapid)"]
[EventCountry "NET"]
[SourceTitle "playchess.com"]
[Source "ChessBase"]
[SourceQuality "1"]
[WhiteTeam "India"]
[BlackTeam "India"]
[WhiteTeamCountry "IND"]
[BlackTeamCountry "IND"]
[TimeControl "900+10"]

{[%evp 14,41,14,13,18,25,14,20,13,17,11,5,12,15,6,9,5,25,16,23,16,0,39,0,24,24,14,21,32,22]} 1. e4 {[%emt 0:00:00]} c5 {[%emt 0:10:00]} 2. Nf3 {[%emt 0:00:02]} d6 {[%emt 0:00:02]} 3. d4 {[%emt 0:00:01]} cxd4 {[%emt 0:00:00]} 4. Nxd4 {[%emt 0:00:00]} Nf6 {[%emt 0:00:01]} 5. Nc3 {[%emt 0:00:01]} a6 {[%emt 0:00:01]} 6. a4 {[%emt 0:00:01]} e5 {[%emt 0:00:01]} 7. Nf3 {[%emt 0:00:02]} Be7 {[%emt 0:00:00]} 8. Bg5 {[%emt 0:00:06] is now debated instead of 8.Bc4.} Be6 {[%emt 0:00:15] B90: Sicilian Najdorf: Unusual White 6th moves, 6 Be3 Ng4 and 6 Be3 e5.} 9. Bxf6 {[%emt 0:00:02]} Bxf6 {[%emt 0:00:00]} 10. Nd5 {[%emt 0:00:01] Inhibits Qb6.} Nd7 {[%emt 0:00:18] The position is equal.} 11. Bc4 {[%emt 0:00:03]} Nb6 {[%emt 0:00:14]} 12. Nxf6+ {[%emt 0:03:58]} Qxf6 {[%emt 0:00:10]} 13. Bxe6 {[%emt 0:00:01]} Qxe6 {[%emt 0:00:00]} 14. O-O {[%emt 0:00:01]} O-O {[%emt 0:00:07]} 15. Qd3 {[%emt 0:00:02]} Rac8 {[%emt 0:00:57]} 16. Rfd1 {[%emt 0:00:23]} Rc6 {[%emt 0:00:07]} 17. b3 {[%emt 0:01:10] [#]} f5 $146 {[%emt 0:00:40]} ({Predecessor:} 17... Nd7 18. c4 Nc5 19. Qe3 Qh6 20. Qxh6 gxh6 21. Nd2 a5 22. Rac1 Re8 23. Rc3 Kf8 {1-0 (49) Delgado Ramirez,N (2622)-Sekar,B (2283) Ahmedabad 2022}) 18. Re1 {[%emt 0:03:03][%cal Bd1e1,Be1e4,Be4e3][%mdl 32]} fxe4 {[%emt 0:00:38]} (18... Nd7 $5 {[%cal Rd7c5]}) 19. Rxe4 {[%emt 0:00:15] [#] Nd4 is the strong threat.} Qd5 {[%emt 0:00:37] Prevents Nd4.} 20. Qe2 {[%emt 0:00:21]} Rc3 {[%emt 0:04:22]} 21. Re3 {[%emt 0:00:41][%mdl 32768] Not much happened in this game.  Weighted Error Value: White=0.05 (flawless) /Black=0.07 (flawless) . Loss on time!?} 1-0

[Event "MPL-4 Indian Chess Tour 2022"]
[Site "Chess24"]
[Date "2022.09.27"]
[Round "1.2"]
[White "Pranav, V."]
[Black "Adhiban, B.."]
[Result "1-0"]
[ECO "B06"]
[WhiteElo "2530"]
[BlackElo "2603"]
[Annotator "TA"]
[PlyCount "83"]
[EventDate "2022.09.29"]
[EventType "tourn (rapid)"]
[EventCountry "NET"]
[SourceTitle "playchess.com"]
[Source "ChessBase"]
[SourceQuality "1"]
[WhiteTeam "India"]
[BlackTeam "India"]
[WhiteTeamCountry "IND"]
[BlackTeamCountry "IND"]
[TimeControl "900+10"]

{[%evp 14,83,45,41,46,0,10,-2,6,6,0,-8,0,-10,0,0,0,0,0,0,0,0,39,52,39,38,25,31,137,123,127,127,175,121,120,120,118,120,118,120,114,116,125,104,97,75,93,44,33,41,33,29,36,38,76,72,80,58,63,52,87,3,743,740,729,720,807,798,811,752,705,645]} 1. e4 {[%emt 0:00:00]} g6 {[%emt 0:00:00]} 2. d4 {[%emt 0:00:05]} Bg7 {[%emt 0:00:02]} 3. Nc3 {[%emt 0:00:04]} d6 {[%emt 0:00:01]} 4. f4 {[%emt 0:00:08]} a6 {[%emt 0:00:03]} 5. Nf3 {[%emt 0:00:39]} b5 {[%emt 0:00:03]} 6. Bd3 {[%emt 0:00:47]} Bb7 {[%emt 0:00:03]} 7. O-O {[%emt 0:00:35]} Nd7 {[%emt 0:00:06]} 8. e5 {[%emt 0:00:31]} (8. a4 $5 {[%cal Ra4b5]}) 8... Nh6 {[%emt 0:00:11] B06: Modern Defence.} 9. Ne4 {[%emt 0:00:21][%cal Oe5e6]} c5 {[%emt 0:01:36]} 10. c3 {[%emt 0:00:01] [#]} (10. exd6 c4 11. dxe7 Qb6 12. Bxc4 Bxe4 $15) 10... cxd4 $146 {[%emt 0:00:12] The position is equal.} ({Predecessor:} 10... Qb6 11. Kh1 cxd4 12. cxd4 Nf5 13. Bb1 dxe5 14. fxe5 Rd8 15. Bf4 h5 16. Qd2 Nf8 {0-1 (45) Chernomordik,P (2177)-Matinian,N (2470) Chess.com INT 2021}) 11. cxd4 {[%emt 0:00:51]} O-O {[%emt 0:01:13]} 12. Kh1 {[%emt 0:00:29]} ({Of course not} 12. exd6 exd6 13. Nxd6 Bxf3 14. Qxf3 Nf6 $15) 12... Nf5 {[%emt 0:00:24]} 13. Qe2 {[%emt 0:01:43]} Qb6 {[%emt 0:02:35]} 14. e6 {[%emt 0:01:33]} fxe6 {[%emt 0:00:08]} 15. Neg5 {[%emt 0:00:00]} e5 {[%emt 0:00:10]} (15... Nxd4 16. Nxd4 Qxd4 17. Qxe6+ Kh8 18. Qh3 $16) 16. Ne6 {[%emt 0:01:24]} Rf6 {[%emt 0:03:44]} ({Don't play} 16... Nxd4 17. Nfxd4 (17. Nexd4 $2 Nc5 $19) 17... exd4 18. Nxf8 Nxf8 19. f5 $14) 17. Nxg7 {[%emt 0:00:46]} Nxg7 {[%emt 0:00:01]} 18. dxe5 {[%emt 0:01:37]} dxe5 {[%emt 0:00:04]} 19. fxe5 {[%emt 0:01:41]} Bxf3 {[%emt 0:00:27]} 20. gxf3 {[%emt 0:00:15]} Re6 {[%emt 0:00:36]} ({Better is} 20... Rff8 $14) 21. Be3 $16 {[%emt 0:00:28]} Qc7 {[%emt 0:03:07]} 22. Be4 {[%emt 0:00:01]} Rf8 {[%emt 0:00:25]} (22... Rd8 $16) 23. Bd5 {[%emt 0:00:04] This bishop pair is nice.} (23. Rfd1 $18 {aiming for Rac1.} Nb6 24. Rac1) 23... Qxe5 {[%emt 0:00:03]} 24. Bxe6+ {[%emt 0:00:01]} Qxe6 {[%emt 0:00:02]} 25. Rae1 {[%emt 0:00:57]} Nf5 {[%emt 0:00:07] Against Bh6} 26. Bg5 {[%emt 0:00:30]} Qxe2 {[%emt 0:01:05]} 27. Rxe2 {[%emt 0:00:03]} Kf7 {[%emt 0:00:01]} 28. Rd1 {[%emt 0:00:26]} Nc5 {[%emt 0:00:15]} 29. Be3 {[%emt 0:00:43] White is more active.} Ne6 {[%emt 0:00:06]} 30. b4 {[%emt 0:00:56]} ({White should play} 30. Rd3 $16) 30... Rc8 $14 {[%emt 0:00:13]} 31. Bc5 {[%emt 0:00:11]} a5 {[%emt 0:00:18]} 32. a3 {[%emt 0:00:20]} axb4 {[%emt 0:00:02]} 33. axb4 {[%emt 0:00:01]} Rc6 {[%emt 0:01:04]} 34. Re5 {[%emt 0:00:25]} Ng5 {[%emt 0:00:22]} 35. Kg2 {[%emt 0:00:40]} Ra6 {[%emt 0:00:11]} 36. Rde1 {[%emt 0:00:27]} Ne6 {[%emt 0:00:06]} 37. Kf1 {[%emt 0:00:30]} (37. Be3 $16) 37... Ra3 $2 {[%emt 0:00:10][%mdl 8192] [#] This move loses the game for Black.} 38. Rxe6 $18 {[%emt 0:00:12] White is clearly winning.} Rxf3+ {[%emt 0:00:02]} 39. Kg1 {[%emt 0:00:03]} Rb3 {[%emt 0:00:16]} 40. Bxe7 {[%emt 0:00:12]} Nd4 {[%emt 0:00:02]} 41. Rf6+ {[%emt 0:00:01]} Kg7 {[%emt 0:00:20]} 42. Ref1 {[%emt 0:00:28] Weighted Error Value: White=0.15 (very precise) /Black=0.15 (very precise)} 1-0

[Event "MPL-4 Indian Chess Tour 2022"]
[Site "Chess24"]
[Date "2022.09.27"]
[Round "1.3"]
[White "Puranik, Abhimanyu"]
[Black "Narayanan.S.L"]
[Result "0-1"]
[ECO "A13"]
[WhiteElo "2603"]
[BlackElo "2657"]
[Annotator "TA"]
[PlyCount "62"]
[EventDate "2022.09.29"]
[EventType "tourn (rapid)"]
[EventCountry "NET"]
[SourceTitle "playchess.com"]
[Source "ChessBase"]
[SourceQuality "1"]
[WhiteTeam "India"]
[BlackTeam "India"]
[WhiteTeamCountry "IND"]
[BlackTeamCountry "IND"]
[TimeControl "900+10"]

{[%evp 14,62,19,7,19,0,0,0,0,0,0,0,0,0,0,-12,-12,-7,-3,-50,-50,-50,-42,-43,-50,-51,-33,-154,-77,-72,-82,-69,-76,-103,-103,-170,-170,-318,-176,-320,-325,-339,-331,-393,-384,-843,-842,-689,-577,-5335,-1667]} 1. Nf3 {[%emt 0:00:00]} d5 {[%emt 0:00:00]} 2. c4 {[%emt 0:00:02]} e6 {[%emt 0:00:04]} 3. e3 {[%emt 0:00:01]} Nf6 {[%emt 0:00:01]} 4. b3 {[%emt 0:00:02]} c5 {[%emt 0:00:01]} 5. Bb2 {[%emt 0:00:04]} Nc6 {[%emt 0:00:01]} 6. cxd5 {[%emt 0:00:09]} exd5 {[%emt 0:00:00]} 7. Bb5 {[%emt 0:00:04]} Bd6 {[%emt 0:00:01]} 8. O-O {[%emt 0:00:11]} O-O {[%emt 0:00:02] A13: English Opening: 1...e6.} 9. d4 {[%emt 0:00:03]} cxd4 {[%emt 0:00:01]} 10. Nxd4 {[%emt 0:00:06]} Bc7 {[%emt 0:00:01] The position is equal.} 11. Nf3 {[%emt 0:00:12]} Re8 {[%emt 0:00:04] [#]} 12. Nbd2 $146 {[%emt 0:00:08]} ({Predecessor:} 12. Qc2 Bg4 13. Nbd2 Rc8 14. h3 Bh5 15. Qf5 Bg6 16. Qg5 Bd6 17. Rac1 Be7 18. Qf4 {½-½ (51) Babic,D (2495)-Kunzelmann,F (2497) ICCF email 2018}) 12... Qd6 {[%emt 0:00:04]} 13. Qc2 {[%emt 0:00:13]} Ne4 {[%emt 0:00:07]} 14. g3 {[%emt 0:01:14]} Bf5 {[%emt 0:00:16][%cal Re4g3]} 15. Nxe4 {[%emt 0:00:09]} Bxe4 {[%emt 0:00:02]} 16. Qc3 {[%emt 0:00:02]} (16. Qe2 $11) 16... Qh6 $15 {[%emt 0:00:37] Really sharp!} 17. Bxc6 {[%emt 0:01:01]} bxc6 {[%emt 0:00:58]} 18. Nd2 {[%emt 0:00:28]} Bf5 {[%emt 0:01:41] This bishop pair is nice.} 19. b4 {[%emt 0:00:02]} Rad8 {[%emt 0:00:38]} 20. Rac1 {[%emt 0:00:18]} ({White should play} 20. Nb3 $15) 20... Be5 {[%emt 0:00:15]} (20... Rd6 $142 $1 {...Rg6 is the strong threat.} 21. Rfe1 Bb6) 21. Qb3 $17 {[%emt 0:00:29]} Bxb2 {[%emt 0:00:01] Black is much more active.} 22. Qxb2 {[%emt 0:00:02]} d4 $1 {[%emt 0:00:02][%cal Bd5d4,Bd4d3,Bd3d2][%mdl 32]} 23. e4 {[%emt 0:01:21]} Bxe4 {[%emt 0:00:04]} 24. Rfe1 {[%emt 0:00:06] [#]} (24. Nxe4 $17 {keeps fighting.} Rxe4 25. b5 cxb5 26. Qxb5) 24... Bd5 $1 $19 {[%emt 0:00:27]} 25. f3 {[%emt 0:00:47]} ({Wrong is} 25. Rxe8+ $2 Rxe8 26. Nf1 Qh5 $19) (25. Rcd1 $142) 25... g6 {[%emt 0:01:12]} (25... d3 $142 {White must now prevent ...Re3.} 26. f4 Qh5) 26. h4 {[%emt 0:01:56]} (26. Rxe8+ $2 Rxe8 27. Nf1 Bxf3 $19) (26. Rcd1 {is a better defense.}) 26... d3 {[%emt 0:01:00] aiming for ...Re3.} 27. Qc3 {[%emt 0:00:08]} Re3 {[%emt 0:00:17] Threatens to win with ...Rde8.} (27... Bxa2 28. Ne4 Rf8 29. Ra1 $11 (29. Nf6+ Kh8 $11)) 28. Kf2 {[%emt 0:03:03]} Rde8 {[%emt 0:00:02] ( -> ...Re2+)} 29. Ne4 $2 {[%emt 0:00:06] [#]} (29. f4 Re2+ 30. Rxe2 Rxe2+ 31. Kf1) 29... Rxf3+ $3 {[%emt 0:00:02][%mdl 512] Black is clearly winning.} 30. Kxf3 {[%emt 0:00:00]} d2 {[%emt 0:00:00] Hoping for ...f5.} 31. Kg4 {[%emt 0:00:38] Intending Nf6+ and mate.} Bxe4 {[%emt 0:00:08] Weighted Error Value: White=0.70/Black=0.18 (very precise)} (31... Rxe4+ $142 32. Kh3 Be6+ 33. Kh2 Rc4) 0-1

[Event "MPL-4 Indian Chess Tour 2022"]
[Site "Chess24"]
[Date "2022.09.27"]
[Round "1.4"]
[White "Aditya Mittal"]
[Black "Mohammad Nubairshah Shaikh"]
[Result "1-0"]
[ECO "E60"]
[WhiteElo "2485"]
[BlackElo "2461"]
[Annotator "TA"]
[PlyCount "73"]
[EventDate "2022.09.29"]
[EventType "tourn (rapid)"]
[EventCountry "NET"]
[SourceTitle "playchess.com"]
[Source "ChessBase"]
[SourceQuality "1"]
[WhiteTeam "India"]
[BlackTeam "India"]
[WhiteTeamCountry "IND"]
[BlackTeamCountry "IND"]
[TimeControl "900+10"]

{[%evp 17,73,-8,0,-51,0,0,11,14,13,11,73,83,68,62,56,64,66,54,327,328,321,324,329,317,469,424,535,551,521,394,355,353,431,431,431,431,431,431,416,400,431,431,431,416,432,319,416,318,318,318,623,615,1177,1002,29990,29991,29992,29993]} 1. d4 {[%emt 0:00:00]} d6 {[%emt 0:00:00]} 2. Nf3 {[%emt 0:00:02]} g6 {[%emt 0:00:05]} 3. c4 {[%emt 0:00:03]} Nf6 {[%emt 0:00:11]} 4. Nc3 {[%emt 0:00:02]} Bf5 {[%emt 0:00:01]} 5. g3 {[%emt 0:00:18]} Bg7 {[%emt 0:00:17]} 6. Bg2 {[%emt 0:00:12]} Ne4 {[%emt 0:00:02]} 7. Qb3 {[%emt 0:00:18]} Nxc3 {[%emt 0:01:01]} 8. bxc3 {[%emt 0:00:10]} Be4 {[%emt 0:00:08]} 9. O-O {[%emt 0:00:48]} O-O {[%emt 0:00:10]} (9... b6 {is interesting.} 10. d5 Qc8 11. Nd4 Bxg2 12. Kxg2 O-O) 10. a4 {[%emt 0:00:58] [#] E60: King's Indian: Unusual lines and Fianchetto Variation without Nc3.} (10. Bh3 $11) 10... Nd7 $146 {[%emt 0:00:57]} (10... Nc6 $15) ({Predecessor:} 10... b6 11. Ba3 Nc6 12. Qa2 Qc8 13. Rfd1 Qa6 14. Qb3 Na5 15. Qb5 Qb7 16. c5 Rfd8 17. Rac1 Rab8 18. cxd6 cxd6 {1-0 (62) Fedoseev,V (2701)-Ibarra Jerez,J (2570) Chess.com INT 2022}) 11. Bh3 $11 {[%emt 0:00:42]} b6 {[%emt 0:02:53]} 12. a5 {[%emt 0:00:11] The position is equal.} e5 {[%emt 0:00:28]} 13. Bg5 {[%emt 0:00:43]} f6 {[%emt 0:01:32]} (13... Qe8 $11 {remains equal.}) 14. Be3 $16 {[%emt 0:00:23]} Kh8 {[%emt 0:00:48]} 15. Qa4 {[%emt 0:00:41]} Bxf3 {[%emt 0:00:18]} 16. exf3 {[%emt 0:00:05]} f5 {[%emt 0:00:01]} 17. f4 {[%emt 0:00:30] White is more active.} c5 $2 {[%emt 0:01:03][%mdl 8192] [#]} (17... e4 $14) 18. dxe5 $1 $18 {[%emt 0:00:13]} bxa5 {[%emt 0:01:03]} 19. Rfd1 {[%emt 0:00:55]} (19. exd6 Bxc3 20. Rab1 Bb4 $16) (19. Qxa5 dxe5 20. Rfd1 Qxa5 21. Rxa5 exf4 22. Bxf4 (22. Rxd7 fxe3 23. fxe3 Bxc3 $11) 22... Nf6 $14) 19... Nb6 {[%emt 0:00:15]} 20. Qa2 {[%emt 0:01:00]} ({Don't play} 20. Qxa5 Nxc4 21. Qa2 Nxe3 $18) 20... Qe7 {[%emt 0:01:12]} (20... Rc8 $142 21. Rxd6 Qe7) 21. exd6 {[%emt 0:02:08]} Qe6 {[%emt 0:00:04]} 22. Bxc5 {[%emt 0:00:20]} Rac8 {[%emt 0:00:05] [#]} 23. d7 $1 {[%emt 0:00:39]} Nxd7 {[%emt 0:00:03]} 24. Bxf8 {[%emt 0:00:02]} ({Not} 24. Bxa7 Nc5 25. Rd5 (25. Qxa5 Nb3 $14) 25... Ne4 $18) 24... Nxf8 {[%emt 0:00:00]} 25. Qxa5 {[%emt 0:00:10]} Qxc4 {[%emt 0:00:02]} 26. Qxa7 {[%emt 0:00:17]} Qxc3 {[%emt 0:00:02]} 27. Rab1 {[%emt 0:00:14]} Qc2 {[%emt 0:00:10]} 28. Qe3 {[%emt 0:00:38]} Qa4 {[%emt 0:00:37]} 29. Bg2 {[%emt 0:00:18]} h5 {[%emt 0:00:05]} 30. Bd5 {[%emt 0:00:17]} Re8 {[%emt 0:00:10]} 31. Qb3 {[%emt 0:00:25]} Qa7 {[%emt 0:00:04]} 32. Qb7 {[%emt 0:00:05]} Qxb7 {[%emt 0:00:25]} 33. Rxb7 {[%emt 0:00:00]} Kh7 $2 {[%emt 0:00:07]} (33... Rd8 34. Kg2 Bf6) 34. Rc1 {[%emt 0:00:08] Hoping for Rcc7.} Kh6 {[%emt 0:00:20]} 35. Rcc7 {[%emt 0:00:05]} Bd4 {[%emt 0:00:04]} 36. Bg8 {[%emt 0:00:25]} g5 {[%emt 0:00:29]} 37. Rc6+ {[%emt 0:00:04] Black got outplayed after the opening.  Weighted Error Value: White=0.21 (precise) /Black=0.69} 1-0

[Event "MPL-4 Indian Chess Tour 2022"]
[Site "Chess24"]
[Date "2022.09.27"]
[Round "1.5"]
[White "Sethuraman, S.P."]
[Black "Mendonca, Leon Luke"]
[Result "1/2-1/2"]
[ECO "E04"]
[WhiteElo "2638"]
[BlackElo "2558"]
[Annotator "TA"]
[PlyCount "116"]
[EventDate "2022.09.29"]
[EventType "tourn (rapid)"]
[EventCountry "NET"]
[SourceTitle "playchess.com"]
[Source "ChessBase"]
[SourceQuality "1"]
[WhiteTeam "India"]
[BlackTeam "India"]
[WhiteTeamCountry "IND"]
[BlackTeamCountry "IND"]
[TimeControl "900+10"]

{[%evp 12,116,0,0,0,0,0,0,0,0,2,-13,0,-74,-63,-60,-69,-68,-60,-62,-54,-61,-60,-53,0,0,0,0,32,16,93,71,78,64,112,23,21,0,0,0,42,20,31,4,10,9,64,6,71,62,80,80,114,114,115,114,124,74,125,77,80,0,0,-8,154,2,48,0,0,6,6,0,0,0,0,0,0,0,0,0,0,0,0,0,0,0,0,0,0,0,0,0,0,0,0,0,0,0,0,0,0,0,0,0,0,0,0]} 1. d4 {[%emt 0:00:00]} d5 {[%emt 0:00:00]} 2. c4 {[%emt 0:00:03]} c6 {[%emt 0:00:01]} 3. Nf3 {[%emt 0:00:03]} Nf6 {[%emt 0:00:01]} 4. Nc3 {[%emt 0:00:01]} e6 {[%emt 0:00:04]} 5. g3 {[%emt 0:00:01]} dxc4 {[%emt 0:00:27]} 6. Bg2 {[%emt 0:00:02]} b5 {[%emt 0:00:01]} 7. Ne5 {[%emt 0:00:10]} a6 {[%emt 0:00:07][%cal Ba7a6,Ba6a5][%mdl 32] E04: Open Catalan: 5 Nf3.} 8. O-O {[%emt 0:00:02]} Bb7 {[%emt 0:00:03]} 9. b3 {[%emt 0:00:02]} b4 {[%emt 0:00:11]} 10. Na4 {[%emt 0:00:01] 10.Ne4 deserves study.} c3 {[%emt 0:00:16]} 11. Nc4 {[%emt 0:00:02]} a5 $1 {[%emt 0:00:50] [#]} 12. e4 $146 {[%emt 0:00:02]} (12. Bf4 $11) ({Predecessor:} 12. a3 Ba6 13. Bf4 Bb5 14. e4 Be7 15. Nab6 Ra6 16. a4 Rxb6 17. axb5 Rxb5 18. Ra2 {½-½ (30) Dubov,D (2720)-Mamedyarov,S (2767) Wijk aan Zee 2022}) 12... Be7 $1 $17 {[%emt 0:02:54]} 13. e5 {[%emt 0:00:03]} Nd5 {[%emt 0:00:23]} 14. Qg4 {[%emt 0:00:02]} Kf8 {[%emt 0:00:27]} 15. Nc5 {[%emt 0:00:02]} Ba6 {[%emt 0:02:18]} 16. Re1 {[%emt 0:00:04][%cal Oc4d6]} h5 {[%emt 0:06:02]} 17. Qd1 {[%emt 0:00:14]} Nd7 {[%emt 0:01:46]} (17... h4 $15) 18. Nd6 $11 {[%emt 0:00:04]} Bxd6 {[%emt 0:00:42]} 19. exd6 {[%emt 0:00:03]} N7f6 {[%emt 0:00:13]} 20. a3 {[%emt 0:05:59]} ({Much weaker is} 20. Rxe6 Kg8 21. Re1 Qxd6 $11) 20... Kg8 {[%emt 0:00:09]} (20... Bc8 $11) 21. axb4 $16 {[%emt 0:01:06]} Nxb4 {[%emt 0:00:05]} 22. Bg5 {[%emt 0:00:51]} Bc8 {[%emt 0:01:08]} (22... Bb5 $14) 23. Qc1 {[%emt 0:03:21]} (23. Ne4 $16) 23... Qxd6 $11 {[%emt 0:00:17]} 24. Bxf6 {[%emt 0:01:59]} gxf6 {[%emt 0:00:01]} 25. Qxc3 {[%emt 0:00:29]} Kg7 {[%emt 0:00:12]} 26. Re4 {[%emt 0:02:03][%mdl 1024] White has compensation.} Ra7 {[%emt 0:00:33]} 27. Rh4 {[%emt 0:00:09]} Nd5 $1 {[%emt 0:00:10]} 28. Qf3 {[%emt 0:00:22]} Ne7 {[%emt 0:00:16]} (28... e5 $11) 29. Rd1 {[%emt 0:01:25]} (29. Ra4 $14 e5 30. Ne4 (30. Rxh5 Rxh5 31. Ne4 Rf5 $14)) 29... Ng6 {[%emt 0:00:11]} (29... e5 $11 {keeps the balance.}) 30. Rxh5 $16 {[%emt 0:00:01]} Rxh5 {[%emt 0:00:04]} 31. Qxh5 {[%emt 0:00:00]} Ra8 {[%emt 0:00:17]} 32. Qf3 $36 {[%emt 0:00:11][%mdl 2048] White is on the roll. White has more active pieces.} Rb8 {[%emt 0:00:06]} 33. h4 {[%emt 0:00:10] Black must now prevent h5.} f5 {[%emt 0:00:09]} 34. Qc3 {[%emt 0:00:31]} ({White should play} 34. Qxc6 Qxc6 35. Bxc6) 34... Rb4 {[%emt 0:00:13]} (34... e5 $142) 35. h5 {[%emt 0:00:18]} (35. Rd2 $142) 35... Ne7 {[%emt 0:00:05]} 36. d5+ {[%emt 0:00:46]} ({Better is} 36. Bf3 $16 {aiming for d5+.} Nd5 37. Qc1) 36... e5 $11 {[%emt 0:00:12][%cal Rc6d5]} 37. h6+ {[%emt 0:00:25]} Kxh6 $2 {[%emt 0:00:09] [#]} (37... Kh7 $1 $11) 38. Qc1+ $2 {[%emt 0:00:03]} (38. Nb7 $1 $16 {[%cal Rb7d6][%mdl 512]} Bxb7 39. Qc1+ Kh7 40. dxc6) 38... Kg6 {[%emt 0:00:12]} (38... Kg7 $11 39. dxc6 Rd4 40. Rxd4 Qxd4) 39. dxc6 {[%emt 0:00:05]} (39. Nb7 $5 {[%cal Rb7d6]} Qc7 40. dxc6 $16) 39... Rd4 {[%emt 0:00:00] The position is equal.} 40. Rxd4 {[%emt 0:00:03]} Qxd4 {[%emt 0:00:15]} 41. Qc2 {[%emt 0:00:19]} e4 {[%emt 0:00:06]} 42. c7 {[%emt 0:00:09]} Qd6 {[%emt 0:00:20]} 43. Na4 {[%emt 0:00:15]} Nd5 {[%emt 0:00:02]} 44. Qd2 {[%emt 0:00:08]} Qc6 {[%emt 0:00:09]} 45. Qxa5 {[%emt 0:00:16]} Nxc7 {[%emt 0:00:02]} 46. Nc5 {[%emt 0:00:06]} Ne6 {[%emt 0:00:10]} 47. b4 {[%emt 0:00:05]} Qd5 {[%emt 0:00:28]} 48. Kh2 {[%emt 0:00:12]} Qd2 {[%emt 0:00:11]} 49. Qa8 {[%emt 0:00:09]} Qxb4 {[%emt 0:00:10]} 50. Nxe4 {[%emt 0:00:13]} fxe4 {[%emt 0:00:09]} 51. Qxc8 {[%emt 0:00:05][%mdl 4096] Endgame KQB-KQN} Qd4 {[%emt 0:00:08]} 52. Qc2 {[%emt 0:00:20]} f5 {[%emt 0:00:12]} 53. Kg1 {[%emt 0:00:08]} Ng5 {[%emt 0:00:11]} 54. Qc6+ {[%emt 0:00:08]} Qf6 {[%emt 0:00:02]} 55. Qe8+ {[%emt 0:00:04]} Qf7 {[%emt 0:00:03]} 56. Qc6+ {[%emt 0:00:03]} Qf6 {[%emt 0:00:01]} 57. Qe8+ {[%emt 0:00:14]} Qf7 {[%emt 0:00:02]} 58. Qc6+ {[%emt 0:00:04]} Qf6 {[%emt 0:00:00] Weighted Error Value: White=0.15 (very precise) /Black=0.16 (very precise)} 1/2-1/2